[Event "2nd Namma Bengaluru Open-A 2025"]
[Site "Bengaluru"]
[Date "2025.04.18"]
[Round "10.1"]
[White "Petrosyan, Manuel"]
[Black "Pantsulaia, Levan"]
[Result "1/2-1/2"]
[Annotator "RC"]
[ECO "D14"]
[WhiteElo "2544"]
[BlackElo "2532"]
[PlyCount "69"]
[EventDate "2025.04.10"]
[EventType "swiss"]
[EventCountry "IND"]
[SourceTitle "playchess.com"]
[Source "ChessBase"]
[SourceQuality "1"]
[TimeControl "5400+30"]

1. d4 {[%emt 0:00:26]} d5 {[%emt 0:00:21]} 2. c4 {[%emt 0:00:24]} c6 {[%emt 0:00:19]} 3. cxd5 {[%emt 0:05:16]} cxd5 {[%emt 0:03:33]} 4. Nc3 {[%emt 0:00:07]} Nf6 {[%emt 0:00:51]} 5. Nf3 {[%emt 0:00:13]} Nc6 {[%emt 0:00:13]} 6. Bf4 {[%emt 0:00:12]} Bf5 {[%emt 0:00:32]} 7. e3 {[%emt 0:00:11]} e6 {[%emt 0:00:12]} 8. Bd3 {[%emt 0:00:15]} Bxd3 {[%emt 0:00:07]} 9. Qxd3 {[%emt 0:00:04]} Bd6 {[%emt 0:00:16]} 10. Bxd6 {[%emt 0:00:14]} Qxd6 {[%emt 0:00:06]} 11. O-O {[%emt 0:00:08]} O-O {[%emt 0:00:05]} 12. Rac1 {[%emt 0:00:23]} Rfc8 {[%emt 0:00:57]} 13. h3 {[%emt 0:00:42]} h6 {[%emt 0:00:15]} 14. Nd2 {[%emt 0:02:15]} Nd7 {[%emt 0:00:56]} 15. Ne2 {[%emt 0:03:40]} Ne7 {[%emt 0:00:37]} 16. a3 {[%emt 0:00:25]} Rxc1 {[%emt 0:00:37]} 17. Rxc1 {[%emt 0:00:08]} Rc8 {[%emt 0:00:05]} 18. Rxc8+ {[%emt 0:00:16]} Nxc8 {[%emt 0:00:05]} 19. Qc2 {[%emt 0:00:48]} Ne7 {[%emt 0:00:23]} 20. Nc1 {[%emt 0:00:44]} Qc6 {[%emt 0:00:18]} 21. Qxc6 {[%emt 0:00:06]} Nxc6 {[%emt 0:00:04]} 22. Nd3 {[%emt 0:00:10]} Kf8 {[%emt 0:00:08]} 23. Kf1 {[%emt 0:00:06]} Ke7 {[%emt 0:00:06]} 24. Ke2 {[%emt 0:00:10]} Kd6 {[%emt 0:00:14]} 25. h4 {[%emt 0:00:19]} h5 {[%emt 0:00:25]} 26. g3 {[%emt 0:00:11]} g6 {[%emt 0:00:07]} 27. b3 {[%emt 0:00:23]} b6 {[%emt 0:00:11]} 28. a4 {[%emt 0:00:51]} a5 {[%emt 0:00:08]} 29. Nb1 {[%emt 0:00:20]} Ne7 {[%emt 0:00:47]} 30. Nc3 {[%emt 0:00:24]} Nc6 {[%emt 0:00:08]} 31. Nb5+ {[%emt 0:00:23]} Ke7 {[%emt 0:00:09]} 32. Nc3 {[%emt 0:00:09]} Kd6 {[%emt 0:00:06]} 33. Nb5+ {[%emt 0:00:06]} Ke7 {[%emt 0:00:05]} 34. Nc3 {[%emt 0:00:06]} Kd6 {[%emt 0:00:05]} 35. Nb5+ {[%emt 0:00:06]} 1/2-1/2

[Event "2nd Namma Bengaluru Open-A 2025"]
[Site "Bengaluru"]
[Date "2025.04.18"]
[Round "10.2"]
[White "Anuj Shrivatri"]
[Black "Aronyak Ghosh"]
[Result "1-0"]
[Annotator "RC"]
[ECO "D27"]
[WhiteElo "2400"]
[BlackElo "2525"]
[PlyCount "109"]
[EventDate "2025.04.10"]
[EventType "swiss"]
[EventCountry "IND"]
[SourceTitle "playchess.com"]
[Source "ChessBase"]
[SourceQuality "1"]
[TimeControl "5400+30"]

1. d4 {[%emt 0:00:32]} d5 {[%emt 0:01:38]} 2. c4 {[%emt 0:00:10]} dxc4 {[%emt 0:00:09]} 3. Nf3 {[%emt 0:00:06]} Nf6 {[%emt 0:00:44]} 4. e3 {[%emt 0:00:05]} e6 {[%emt 0:00:11]} 5. Bxc4 {[%emt 0:00:07]} c5 {[%emt 0:00:05]} 6. O-O {[%emt 0:00:06]} a6 {[%emt 0:00:09]} 7. b3 {[%emt 0:00:06]} Nbd7 {[%emt 0:03:14]} 8. Bb2 {[%emt 0:02:36]} Be7 {[%emt 0:01:47]} 9. dxc5 {[%emt 0:00:06]} Bxc5 {[%emt 0:06:30]} 10. Nbd2 {[%emt 0:04:08]} O-O {[%emt 0:03:15]} 11. Bd3 {[%emt 0:04:10]} b6 {[%emt 0:04:19]} 12. Ne4 {[%emt 0:01:18]} Be7 {[%emt 0:12:35]} 13. Qc2 {[%emt 0:01:21]} Bb7 {[%emt 0:04:01]} 14. Nxf6+ {[%emt 0:15:50]} Bxf6 {[%emt 0:01:21]} 15. Bxh7+ {[%emt 0:00:49]} Kh8 {[%emt 0:00:02]} 16. Bxf6 {[%emt 0:00:33]} Nxf6 {[%emt 0:00:49]} 17. Rad1 {[%emt 0:07:33]} Qe7 {[%emt 0:01:59]} 18. Bd3 {[%emt 0:01:11]} Bxf3 {[%emt 0:00:26]} 19. gxf3 {[%emt 0:00:10]} Rac8 {[%emt 0:00:43]} 20. Qe2 {[%emt 0:01:07]} a5 {[%emt 0:02:58]} 21. Bc4 {[%emt 0:05:18]} Rc5 {[%emt 0:00:45]} 22. Kh1 {[%emt 0:01:24]} g6 {[%emt 0:02:17]} 23. Rg1 {[%emt 0:07:39]} Kg7 {[%emt 0:05:38]} 24. a4 {[%emt 0:05:34]} Rh8 {[%emt 0:01:31]} 25. Rg2 {[%emt 0:01:12]} Rch5 {[%emt 0:01:26]} 26. Qb2 {[%emt 0:16:33]} Rh3 {[%emt 0:09:44]} 27. f4 {[%emt 0:06:07]} R8h5 {[%emt 0:06:57]} 28. Be2 {[%emt 0:03:33]} Rh6 {[%emt 0:02:01]} 29. Kg1 {[%emt 0:00:26]} Qb7 {[%emt 0:03:08]} 30. Bg4 {[%emt 0:05:19]} R3h4 {[%emt 0:00:28]} 31. f3 {[%emt 0:03:58]} Qe7 {[%emt 0:02:27]} 32. Qe5 {[%emt 0:00:14]} Kh7 {[%emt 0:02:00]} 33. f5 {[%emt 0:00:23]} g5 {[%emt 0:05:09]} 34. Rc1 {[%emt 0:04:00]} Nd7 {[%emt 0:04:08]} 35. Qc7 {[%emt 0:00:51]} Rxg4 {[%emt 0:02:37]} 36. fxg4 {[%emt 0:00:09]} exf5 {[%emt 0:00:05]} 37. Qc2 {[%emt 0:01:10]} Qxe3+ {[%emt 0:01:35]} 38. Kh1 {[%emt 0:00:03]} Rf6 {[%emt 0:00:40]} 39. Rf1 {[%emt 0:00:32]} Kg7 {[%emt 0:01:52]} 40. gxf5 {[%emt 0:00:31]} Rh6 {[%emt 0:01:53]} 41. Qd2 {[%emt 0:00:52]} Qxd2 {[%emt 0:00:02]} 42. Rxd2 {[%emt 0:00:06]} Nc5 {[%emt 0:00:03]} 43. f6+ {[%emt 0:00:46]} Kg6 {[%emt 0:00:15]} 44. Rd8 {[%emt 0:00:23]} Ne4 {[%emt 0:00:28]} 45. Kg2 {[%emt 0:00:06]} Kh5 {[%emt 0:00:48]} 46. Rd7 {[%emt 0:01:08]} Kg6 {[%emt 0:00:39]} 47. Rd8 {[%emt 0:00:30]} Kh5 {[%emt 0:00:31]} 48. Rf3 {[%emt 0:00:17]} Kg4 {[%emt 0:00:26]} 49. Rd4 {[%emt 0:02:34]} Rxh2+ {[%emt 0:00:07]} 50. Kxh2 {[%emt 0:00:02]} Kxf3 {[%emt 0:00:05]} 51. Rd7 {[%emt 0:00:12]} Kf4 {[%emt 0:06:08]} 52. Rxf7 {[%emt 0:00:05]} Kf5 {[%emt 0:00:04]} 53. Rb7 {[%emt 0:00:05]} Nxf6 {[%emt 0:01:03]} 54. Rxb6 {[%emt 0:00:05]} g4 {[%emt 0:00:21]} 55. Rb5+ {[%emt 0:00:27]} 1-0

[Event "2nd Namma Bengaluru Open-A 2025"]
[Site "Bengaluru"]
[Date "2025.04.18"]
[Round "10.3"]
[White "Chanda, Sandipan"]
[Black "Nithin Babu"]
[Result "1/2-1/2"]
[Annotator "RC"]
[ECO "C42"]
[WhiteElo "2485"]
[BlackElo "2242"]
[PlyCount "45"]
[EventDate "2025.04.10"]
[EventType "swiss"]
[EventCountry "IND"]
[SourceTitle "playchess.com"]
[Source "ChessBase"]
[SourceQuality "1"]
[TimeControl "5400+30"]

1. e4 {[%emt 0:00:04]} e5 {[%emt 0:10:21]} 2. Nf3 {[%emt 0:00:17]} Nf6 {[%emt 0:00:21]} 3. Nxe5 {[%emt 0:00:12]} d6 {[%emt 0:00:03]} 4. Nf3 {[%emt 0:00:11]} Nxe4 {[%emt 0:00:05]} 5. Nc3 {[%emt 0:00:08]} Nxc3 {[%emt 0:00:14]} 6. dxc3 {[%emt 0:00:06]} Be7 {[%emt 0:00:04]} 7. Be3 {[%emt 0:00:15]} Nd7 {[%emt 0:00:07]} 8. Qd2 {[%emt 0:00:11]} Ne5 {[%emt 0:00:13]} 9. O-O-O {[%emt 0:00:14]} Nxf3 {[%emt 0:01:10]} 10. gxf3 {[%emt 0:00:03]} Be6 {[%emt 0:00:45]} 11. Rg1 {[%emt 0:00:09]} g6 {[%emt 0:01:38]} 12. Qd4 {[%emt 0:00:08]} Kd7 {[%emt 0:04:43]} 13. Bc4 {[%emt 0:05:38]} Kc8 {[%emt 0:02:11]} 14. Rge1 {[%emt 0:03:55]} Bf6 {[%emt 0:18:27]} 15. Bxe6+ {[%emt 0:03:21]} fxe6 {[%emt 0:00:02]} 16. Qg4 {[%emt 0:10:57]} Qd7 {[%emt 0:03:40]} 17. f4 {[%emt 0:01:54]} Re8 {[%emt 0:04:57]} 18. Bd4 {[%emt 0:01:52]} Qf7 {[%emt 0:03:11]} 19. Re3 {[%emt 0:02:55]} a5 {[%emt 0:09:50]} 20. Rde1 {[%emt 0:05:46]} Kd7 {[%emt 0:01:21]} 21. Qe2 {[%emt 0:00:33]} Bd8 {[%emt 0:03:28]} 22. f5 {[%emt 0:19:00]} Qxf5 {[%emt 0:15:52]} 23. Rf3 {[%emt 0:00:13]} 1/2-1/2

[Event "2nd Namma Bengaluru Open-A 2025"]
[Site "Bengaluru"]
[Date "2025.04.18"]
[Round "10.10"]
[White "Stany, G.A."]
[Black "Karthikeyan, P.."]
[Result "1-0"]
[Annotator "RC"]
[ECO "B12"]
[WhiteElo "2454"]
[BlackElo "2312"]
[PlyCount "110"]
[EventDate "2025.04.10"]
[EventType "swiss"]
[EventCountry "IND"]
[SourceTitle "playchess.com"]
[Source "ChessBase"]
[SourceQuality "1"]
[TimeControl "5400+30"]

1. e4 {[%emt 0:00:03]} c6 {[%emt 0:09:26]} 2. d4 {[%emt 0:00:06]} d5 {[%emt 0:00:07]} 3. e5 {[%emt 0:00:03]} Bf5 {[%emt 0:01:37]} 4. Nf3 {[%emt 0:00:06]} e6 {[%emt 0:00:07]} 5. Be2 {[%emt 0:00:03]} Nd7 {[%emt 0:00:38]} 6. O-O {[%emt 0:00:08]} h6 {[%emt 0:00:03]} 7. a4 {[%emt 0:00:09]} a5 {[%emt 0:03:12]} 8. c3 {[%emt 0:00:07]} Ne7 {[%emt 0:00:18]} 9. Na3 {[%emt 0:00:19]} Be4 {[%emt 0:00:01]} 10. Ne1 {[%emt 0:04:45]} c5 {[%emt 0:03:15]} 11. Nb5 {[%emt 0:08:08]} Nc6 {[%emt 0:00:11]} 12. Bd3 {[%emt 0:00:09]} cxd4 {[%emt 0:04:40]} 13. Bxe4 {[%emt 0:13:23]} dxe4 {[%emt 0:00:33]} 14. cxd4 {[%emt 0:00:02]} Ndxe5 {[%emt 0:11:00]} 15. Bf4 {[%emt 0:00:18]} Ng6 {[%emt 0:00:02]} 16. Nc7+ {[%emt 0:00:07]} Ke7 {[%emt 0:00:24]} 17. Bg3 {[%emt 0:00:03]} Rc8 {[%emt 0:03:39]} 18. d5 {[%emt 0:00:11]} Nce5 {[%emt 0:02:23]} 19. Nb5 {[%emt 0:10:41]} Qxd5 {[%emt 0:01:51]} 20. Qe2 {[%emt 0:10:30]} f5 {[%emt 0:02:39]} 21. f3 {[%emt 0:00:11]} Qc4 {[%emt 0:10:08]} 22. Qxc4 {[%emt 0:05:07]} Rxc4 {[%emt 0:02:41]} 23. b3 {[%emt 0:00:15]} Rb4 {[%emt 0:02:07]} 24. Nc2 {[%emt 0:00:14]} Rxb3 {[%emt 0:01:38]} 25. fxe4 f4 {[%emt 0:02:16]} 26. Be1 {[%emt 0:08:52]} Kf7 {[%emt 0:00:57]} 27. Bxa5 {[%emt 0:07:18]} Bc5+ {[%emt 0:00:52]} 28. Kh1 {[%emt 0:00:12]} Ng4 {[%emt 0:02:27]} 29. Be1 {[%emt 0:08:07]} e5 {[%emt 0:01:28]} 30. g3 {[%emt 0:05:14]} Rd8 {[%emt 0:01:15]} 31. Nc3 {[%emt 0:07:23]} Nf6 {[%emt 0:05:53]} 32. Ra2 {[%emt 0:01:12]} Ke6 {[%emt 0:02:18]} 33. a5 {[%emt 0:02:23]} fxg3 {[%emt 0:04:51]} 34. hxg3 {[%emt 0:00:36]} Rd3 {[%emt 0:00:06]} 35. a6 {[%emt 0:01:45]} bxa6 {[%emt 0:01:03]} 36. Rxa6+ {[%emt 0:00:04]} Rb6 {[%emt 0:01:50]} 37. Na4 {[%emt 0:00:06]} Rxa6 {[%emt 0:05:03]} 38. Nxc5+ {[%emt 0:00:10]} Kd6 {[%emt 0:00:03]} 39. Nxd3 {[%emt 0:00:34]} Nxe4 {[%emt 0:00:24]} 40. Rf7 {[%emt 0:00:51]} Ra2 {[%emt 0:02:09]} 41. Rxg7 {[%emt 0:00:59]} Rxc2 {[%emt 0:02:59]} 42. Rxg6+ {[%emt 0:00:09]} Kc7 {[%emt 0:00:54]} 43. Nxe5 {[%emt 0:04:39]} Rc1 {[%emt 0:01:04]} 44. Nf3 {[%emt 0:00:26]} Ng5 {[%emt 0:00:05]} 45. Kg2 {[%emt 0:00:03]} Rc2+ {[%emt 0:00:06]} 46. Nd2 {[%emt 0:00:04]} Ne4 {[%emt 0:00:30]} 47. Re6 {[%emt 0:00:05]} Nc5 {[%emt 0:02:16]} 48. Re3 {[%emt 0:00:05]} Kd6 {[%emt 0:00:15]} 49. Kh3 {[%emt 0:00:09]} Kd5 {[%emt 0:00:02]} 50. Nf3 {[%emt 0:00:51]} Ne4 {[%emt 0:00:56]} 51. Rd3+ {[%emt 0:03:23]} Kc5 {[%emt 0:00:01]} 52. Nd2 {[%emt 0:03:11]} Ng5+ {[%emt 0:00:26]} 53. Kg4 {[%emt 0:00:10]} Kc6 {[%emt 0:00:33]} 54. Nf3 {[%emt 0:00:41]} Ne4 {[%emt 0:00:43]} 55. Nd4+ {[%emt 0:00:05]} Kd5 {[%emt 0:11:35]} 1-0

[Event "2nd Namma Bengaluru Open-A 2025"]
[Site "Bengaluru"]
[Date "2025.04.18"]
[Round "10.11"]
[White "Ashwin Sairam"]
[Black "Nitish Belurkar"]
[Result "0-1"]
[Annotator "RC"]
[ECO "C10"]
[WhiteElo "2074"]
[BlackElo "2441"]
[PlyCount "126"]
[EventDate "2025.04.10"]
[EventType "swiss"]
[EventCountry "IND"]
[SourceTitle "playchess.com"]
[Source "ChessBase"]
[SourceQuality "1"]
[TimeControl "5400+30"]

1. e4 {[%emt 0:00:04]} e6 {[%emt 0:00:05]} 2. d4 {[%emt 0:00:10]} d5 {[%emt 0:00:04]} 3. Nc3 {[%emt 0:00:10]} Be7 {[%emt 0:00:10]} 4. Be3 {[%emt 0:05:48]} dxe4 {[%emt 0:13:28]} 5. Nxe4 {[%emt 0:00:18]} Nf6 {[%emt 0:00:23]} 6. Bd3 {[%emt 0:07:32]} Nbd7 {[%emt 0:14:14]} 7. Qe2 {[%emt 0:03:29]} Nd5 {[%emt 0:06:48]} 8. Bd2 {[%emt 0:08:48]} O-O {[%emt 0:08:55]} 9. Nf3 {[%emt 0:20:48]} c5 {[%emt 0:01:48]} 10. Neg5 {[%emt 0:03:45]} N5f6 {[%emt 0:06:49]} 11. Ne5 {[%emt 0:06:01]} h6 {[%emt 0:03:21]} 12. Nexf7 {[%emt 0:13:24]} Rxf7 {[%emt 0:02:04]} 13. Nxe6 {[%emt 0:00:05]} Qb6 {[%emt 0:00:16]} 14. Bc4 {[%emt 0:00:05]} Nf8 {[%emt 0:11:24]} 15. Nf4 {[%emt 0:03:49]} Bd6 {[%emt 0:01:21]} 16. Bxf7+ {[%emt 0:01:59]} Kxf7 {[%emt 0:01:11]} 17. Qc4+ {[%emt 0:00:03]} Ne6 {[%emt 0:04:13]} 18. O-O-O {[%emt 0:01:05]} cxd4 {[%emt 0:00:34]} 19. Rhe1 {[%emt 0:00:20]} Qc7 {[%emt 0:00:18]} 20. Qxc7+ {[%emt 0:03:15]} Bxc7 {[%emt 0:01:44]} 21. Nd3 {[%emt 0:00:06]} Bd7 {[%emt 0:01:42]} 22. f4 {[%emt 0:00:39]} Bc6 {[%emt 0:02:25]} 23. f5 {[%emt 0:00:13]} Nf8 {[%emt 0:03:33]} 24. Bf4 {[%emt 0:01:24]} Bb6 {[%emt 0:05:48]} 25. Ne5+ {[%emt 0:01:05]} Kg8 {[%emt 0:01:21]} 26. Nxc6 {[%emt 0:00:16]} bxc6 {[%emt 0:00:01]} 27. Be5 {[%emt 0:00:23]} Rd8 {[%emt 0:00:12]} 28. c3 {[%emt 0:02:31]} c5 {[%emt 0:00:31]} 29. b4 {[%emt 0:03:07]} d3 {[%emt 0:00:19]} 30. bxc5 {[%emt 0:00:43]} Bxc5 {[%emt 0:00:01]} 31. Bxf6 {[%emt 0:00:20]} gxf6 {[%emt 0:00:01]} 32. Kd2 {[%emt 0:00:08]} Rd5 {[%emt 0:00:56]} 33. Re8 {[%emt 0:01:24]} Kf7 {[%emt 0:00:14]} 34. Rde1 {[%emt 0:00:02]} Nd7 {[%emt 0:00:40]} 35. Rd8 {[%emt 0:07:00]} Bb6 {[%emt 0:01:23]} 36. Rc8 {[%emt 0:00:27]} Ne5 {[%emt 0:04:20]} 37. Re4 {[%emt 0:00:05]} h5 {[%emt 0:00:17]} 38. h3 Kg7 {[%emt 0:00:16]} 39. a4 {[%emt 0:04:12]} Kh6 {[%emt 0:00:45]} 40. Rg8 {[%emt 0:00:15]} Ba5 {[%emt 0:00:49]} 41. Rxe5 {[%emt 0:01:30]} fxe5 {[%emt 0:01:15]} 42. f6 {[%emt 0:00:03]} Rd7 {[%emt 0:00:06]} 43. f7 {[%emt 0:00:05]} Rxf7 {[%emt 0:00:04]} 44. Kxd3 {[%emt 0:00:03]} Rd7+ {[%emt 0:00:12]} 45. Kc4 {[%emt 0:02:53]} Rc7+ {[%emt 0:00:08]} 46. Kd5 {[%emt 0:00:01]} Bxc3 {[%emt 0:00:08]} 47. Ke4 {[%emt 0:00:52]} Rg7 {[%emt 0:00:10]} 48. Rc8 {[%emt 0:00:32]} Bd4 {[%emt 0:00:04]} 49. Kf5 {[%emt 0:00:41]} Rxg2 {[%emt 0:01:01]} 50. Rh8+ {[%emt 0:00:22]} Kg7 {[%emt 0:00:04]} 51. Rxh5 {[%emt 0:00:02]} Rg6 {[%emt 0:00:23]} 52. Ke4 {[%emt 0:00:07]} Rh6 {[%emt 0:00:25]} 53. Rg5+ {[%emt 0:00:04]} Kf6 {[%emt 0:00:04]} 54. Rg3 {[%emt 0:00:04]} Ke6 {[%emt 0:00:02]} 55. Rg4 {[%emt 0:00:09]} Rxh3 {[%emt 0:00:10]} 56. Rg6+ {[%emt 0:00:03]} Kf7 {[%emt 0:00:16]} 57. Rc6 {[%emt 0:00:06]} Rc3 {[%emt 0:00:14]} 58. Ra6 {[%emt 0:00:05]} Ra3 {[%emt 0:00:17]} 59. Kf5 {[%emt 0:00:16]} Ke7 {[%emt 0:00:04]} 60. Ke4 {[%emt 0:00:16]} Kd7 {[%emt 0:00:06]} 61. Kd5 {[%emt 0:00:01]} Bb6 {[%emt 0:00:48]} 62. Kxe5 {[%emt 0:00:20]} Kc6 {[%emt 0:00:07]} 63. a5 {[%emt 0:00:07]} Kb7 {[%emt 0:00:06]} 0-1

[Event "2nd Namma Bengaluru Open-A 2025"]
[Site "Bengaluru"]
[Date "2025.04.18"]
[Round "10.12"]
[White "Kshatriya Nitin Vekhande"]
[Black "Vaz, Ethan"]
[Result "0-1"]
[Annotator "RC"]
[ECO "C55"]
[WhiteElo "2133"]
[BlackElo "2430"]
[PlyCount "112"]
[EventDate "2025.04.10"]
[EventType "swiss"]
[EventCountry "IND"]
[SourceTitle "playchess.com"]
[Source "ChessBase"]
[SourceQuality "1"]
[TimeControl "5400+30"]

1. e4 {[%emt 0:00:01]} e5 {[%emt 0:03:19]} 2. Nf3 {[%emt 0:00:06]} Nc6 {[%emt 0:00:03]} 3. Bc4 {[%emt 0:00:14]} Nf6 {[%emt 0:00:48]} 4. d3 {[%emt 0:01:06]} h6 {[%emt 0:01:41]} 5. Nc3 {[%emt 0:00:50]} d6 {[%emt 0:14:45]} 6. h3 {[%emt 0:00:47]} g6 {[%emt 0:04:09]} 7. Be3 {[%emt 0:02:09]} Bg7 {[%emt 0:02:22]} 8. Bb3 {[%emt 0:09:42]} a6 {[%emt 0:03:30]} 9. Qd2 {[%emt 0:12:09]} Na5 {[%emt 0:03:23]} 10. d4 {[%emt 0:04:40]} Qe7 {[%emt 0:25:10]} 11. O-O-O {[%emt 0:12:15]} Nxb3+ {[%emt 0:09:54]} 12. axb3 {[%emt 0:01:06]} Bd7 {[%emt 0:01:56]} 13. dxe5 {[%emt 0:21:28]} dxe5 {[%emt 0:00:05]} 14. Nxe5 {[%emt 0:03:02]} Qxe5 {[%emt 0:02:51]} 15. Bd4 {[%emt 0:00:45]} Qe6 {[%emt 0:13:37]} 16. Nd5 {[%emt 0:00:33]} O-O {[%emt 0:01:13]} 17. Nxf6+ {[%emt 0:05:51]} Bxf6 {[%emt 0:00:01]} 18. Bxf6 {[%emt 0:00:07]} Qxf6 {[%emt 0:00:07]} 19. Qxd7 {[%emt 0:00:06]} Qxf2 {[%emt 0:01:55]} 20. Qd2 {[%emt 0:17:49]} Qb6 {[%emt 0:01:57]} 21. Qxh6 {[%emt 0:03:14]} a5 {[%emt 0:00:16]} 22. Rd3 {[%emt 0:01:36]} a4 {[%emt 0:00:22]} 23. Qe3 {[%emt 0:01:27]} c5 {[%emt 0:01:52]} 24. bxa4 {[%emt 0:00:38]} Rxa4 {[%emt 0:00:07]} 25. Ra3 {[%emt 0:00:30]} Rfa8 {[%emt 0:01:07]} 26. Rd1 {[%emt 0:00:35]} Rxa3 {[%emt 0:02:46]} 27. bxa3 {[%emt 0:00:02]} Qf6 {[%emt 0:00:52]} 28. e5 {[%emt 0:00:27]} Qc6 {[%emt 0:00:18]} 29. Qf3 {[%emt 0:01:06]} Qxf3 {[%emt 0:00:50]} 30. gxf3 {[%emt 0:00:01]} Rxa3 {[%emt 0:00:08]} 31. Rd5 {[%emt 0:01:03]} b6 {[%emt 0:02:43]} 32. Rd6 {[%emt 0:00:26]} Rxf3 {[%emt 0:00:46]} 33. e6 {[%emt 0:00:06]} fxe6 {[%emt 0:00:30]} 34. Rxe6 {[%emt 0:00:05]} Kg7 {[%emt 0:00:19]} 35. Rxb6 {[%emt 0:00:04]} Rxh3 {[%emt 0:00:03]} 36. Rc6 {[%emt 0:00:06]} Rh5 {[%emt 0:00:08]} 37. Kd2 {[%emt 0:00:08]} Re5 {[%emt 0:00:22]} 38. Kd3 {[%emt 0:00:59]} g5 {[%emt 0:02:20]} 39. c4 {[%emt 0:00:20]} g4 {[%emt 0:00:24]} 40. Ra6 {[%emt 0:00:45]} g3 {[%emt 0:00:41]} 41. Ra1 {[%emt 0:01:10]} g2 {[%emt 0:00:29]} 42. Rg1 {[%emt 0:00:54]} Rg5 {[%emt 0:00:00]} 43. Ke4 {[%emt 0:00:44]} Kf6 {[%emt 0:00:14]} 44. Kf4 {[%emt 0:00:10]} Rg8 {[%emt 0:00:23]} 45. Ke4 {[%emt 0:00:08]} Ke6 {[%emt 0:00:15]} 46. Kf4 {[%emt 0:00:11]} Rg7 {[%emt 0:00:39]} 47. Re1+ {[%emt 0:00:04]} Kd6 {[%emt 0:00:26]} 48. Rg1 {[%emt 0:00:19]} Kc6 {[%emt 0:00:45]} 49. Ke5 {[%emt 0:00:48]} Kb6 {[%emt 0:00:37]} 50. Kd5 {[%emt 0:00:47]} Rg5+ {[%emt 0:00:17]} 51. Ke4 {[%emt 0:00:39]} Ka5 {[%emt 0:00:15]} 52. Kd3 {[%emt 0:00:08]} Rg3+ {[%emt 0:00:30]} 53. Ke4 {[%emt 0:00:25]} Kb4 {[%emt 0:00:12]} 54. Kd5 {[%emt 0:01:46]} Rg5+ {[%emt 0:00:06]} 55. Ke4 {[%emt 0:00:13]} Kxc4 {[%emt 0:00:12]} 56. Kf3 {[%emt 0:00:13]} Kb3 {[%emt 0:00:10]} 0-1

[Event "2nd Namma Bengaluru Open-A 2025"]
[Site "Bengaluru"]
[Date "2025.04.18"]
[Round "10.13"]
[White "Sammed Jaykumar, Shete"]
[Black "Aarav Sinha"]
[Result "1/2-1/2"]
[Annotator "RC"]
[ECO "D56"]
[WhiteElo "2391"]
[BlackElo "2187"]
[PlyCount "105"]
[EventDate "2025.04.10"]
[EventType "swiss"]
[EventCountry "IND"]
[SourceTitle "playchess.com"]
[Source "ChessBase"]
[SourceQuality "1"]
[TimeControl "5400+30"]

1. d4 {[%emt 0:00:09]} Nf6 {[%emt 0:02:09]} 2. c4 {[%emt 0:00:21]} e6 {[%emt 0:00:05]} 3. Nf3 {[%emt 0:00:12]} d5 {[%emt 0:00:06]} 4. Bg5 {[%emt 0:00:26]} Be7 {[%emt 0:01:07]} 5. e3 {[%emt 0:00:17]} O-O {[%emt 0:00:09]} 6. Nc3 {[%emt 0:00:22]} h6 {[%emt 0:00:06]} 7. Bh4 {[%emt 0:00:44]} Ne4 {[%emt 0:00:06]} 8. Bxe7 {[%emt 0:00:20]} Qxe7 {[%emt 0:00:08]} 9. Rc1 {[%emt 0:00:21]} c6 {[%emt 0:00:06]} 10. Bd3 {[%emt 0:00:32]} Nxc3 {[%emt 0:00:52]} 11. Rxc3 {[%emt 0:00:05]} Nd7 {[%emt 0:00:12]} 12. O-O {[%emt 0:02:24]} dxc4 {[%emt 0:01:01]} 13. Bxc4 {[%emt 0:00:13]} e5 {[%emt 0:00:05]} 14. Bb3 {[%emt 0:03:14]} exd4 {[%emt 0:12:59]} 15. Qxd4 {[%emt 0:00:29]} Nf6 {[%emt 0:00:33]} 16. Rc5 {[%emt 0:16:53]} Be6 {[%emt 0:09:48]} 17. Bxe6 {[%emt 0:12:12]} Qxe6 {[%emt 0:00:08]} 18. Qc4 {[%emt 0:01:50]} Qxc4 {[%emt 0:00:13]} 19. Rxc4 {[%emt 0:00:04]} Rfd8 {[%emt 0:00:05]} 20. Rfc1 {[%emt 0:00:16]} Rd6 {[%emt 0:05:25]} 21. Kf1 {[%emt 0:00:44]} Nd7 {[%emt 0:00:05]} 22. Rb4 {[%emt 0:05:59]} Rb8 {[%emt 0:01:22]} 23. Ke2 {[%emt 0:01:09]} c5 {[%emt 0:01:16]} 24. Rb3 {[%emt 0:00:27]} b6 {[%emt 0:01:49]} 25. Ra3 {[%emt 0:01:16]} Rb7 {[%emt 0:00:24]} 26. Rd3 {[%emt 0:03:33]} Rxd3 {[%emt 0:00:47]} 27. Kxd3 {[%emt 0:00:05]} Nf6 {[%emt 0:04:49]} 28. Rc2 {[%emt 0:05:03]} Kf8 {[%emt 0:01:27]} 29. Kc4 {[%emt 0:04:56]} b5+ {[%emt 0:00:38]} 30. Kb3 {[%emt 0:00:24]} Ne4 {[%emt 0:06:38]} 31. a4 {[%emt 0:02:40]} a6 {[%emt 0:00:41]} 32. axb5 {[%emt 0:01:44]} axb5 {[%emt 0:00:15]} 33. Nd2 {[%emt 0:08:20]} c4+ {[%emt 0:02:01]} 34. Kb4 {[%emt 0:09:44]} Nxf2 {[%emt 0:00:10]} 35. Ka5 {[%emt 0:01:45]} Nd3 {[%emt 0:18:28]} 36. Ne4 {[%emt 0:00:58]} b4 {[%emt 0:05:58]} 37. Nd6 {[%emt 0:04:12]} c3 {[%emt 0:02:45]} 38. Nxb7 {[%emt 0:03:15]} cxb2 {[%emt 0:00:05]} 39. Rxb2 {[%emt 0:00:09]} Nxb2 {[%emt 0:00:03]} 40. Kxb4 {[%emt 0:00:05]} Nd1 {[%emt 0:00:03]} 41. e4 {[%emt 0:00:18]} Ne3 {[%emt 0:00:19]} 42. Kc5 {[%emt 0:02:38]} Nxg2 {[%emt 0:01:29]} 43. Kd4 {[%emt 0:00:30]} Ke7 {[%emt 0:00:10]} 44. e5 {[%emt 0:00:44]} Nh4 {[%emt 0:00:46]} 45. Ke4 {[%emt 0:00:07]} g6 {[%emt 0:01:00]} 46. Nc5 {[%emt 0:00:33]} Nf5 {[%emt 0:00:05]} 47. Nd3 {[%emt 0:00:15]} h5 {[%emt 0:00:37]} 48. Nf4 {[%emt 0:00:13]} Ng7 {[%emt 0:00:05]} 49. Nd5+ {[%emt 0:00:33]} Ke6 {[%emt 0:00:42]} 50. Nf4+ {[%emt 0:00:07]} Kd7 {[%emt 0:00:13]} 51. Nd5 {[%emt 0:05:24]} g5 {[%emt 0:00:35]} 52. Nf6+ {[%emt 0:01:15]} Ke6 {[%emt 0:00:12]} 53. Nh7 {[%emt 0:00:22]} 1/2-1/2